[Event "Late-Titled-Tuesday-Blitz-September-12-2023"]
[Site "Chess.com"]
[Date "2023.09.12"]
[Round "5"]
[White "ozates"]
[Black "Chaos_Magic"]
[Result "1-0"]
[WhiteElo "2559"]
[BlackElo "2410"]
[TimeControl "180+1"]
[EndTime "14:53:28 PDT"]
[Termination "ozates won on time"]

1. e4 {[%clk 0:03:00]} 1... e5 {[%clk 0:02:22.1]} 2. Nf3 {[%clk 0:02:56.1]} 2...
Nc6 {[%clk 0:02:22.3]} 3. Bc4 {[%clk 0:02:54.1]} 3... Nf6 {[%clk 0:02:21.9]} 4.
d3 {[%clk 0:02:54.2]} 4... h6 {[%clk 0:02:21.8]} 5. O-O {[%clk 0:02:48.6]} 5...
d6 {[%clk 0:02:21.4]} 6. d4 {[%clk 0:02:48.5]} 6... Bg4 {[%clk 0:02:16]} 7. Bb5
{[%clk 0:02:48.7]} 7... exd4 {[%clk 0:02:11.4]} 8. Qxd4 {[%clk 0:02:43.5]} 8...
Bxf3 {[%clk 0:02:09.6]} 9. gxf3 {[%clk 0:02:44.4]} 9... Be7 {[%clk 0:02:06.9]}
10. Kh1 {[%clk 0:02:43.8]} 10... Qd7 {[%clk 0:02:02.4]} 11. Qd3 {[%clk
0:02:38.8]} 11... a6 {[%clk 0:01:58.8]} 12. Ba4 {[%clk 0:02:38.4]} 12... b5
{[%clk 0:01:55.5]} 13. Bb3 {[%clk 0:02:38.3]} 13... Ne5 {[%clk 0:01:54.7]} 14.
Qe3 {[%clk 0:02:31.7]} 14... Qh3 {[%clk 0:01:41]} 15. Nd2 {[%clk 0:02:06.9]}
15... Qh4 {[%clk 0:01:39.3]} 16. Rg1 {[%clk 0:01:59.5]} 16... g5 {[%clk
0:01:33.9]} 17. a4 {[%clk 0:01:54]} 17... bxa4 {[%clk 0:01:12.7]} 18. Bxa4+
{[%clk 0:01:53.7]} 18... Kf8 {[%clk 0:01:12.7]} 19. Bb5 {[%clk 0:01:39.4]} 19...
Nh5 {[%clk 0:01:03.6]} 20. Rxa6 {[%clk 0:01:32.9]} 20... Rxa6 {[%clk 0:01:02.2]}
21. Bxa6 {[%clk 0:01:33.3]} 21... Nf4 {[%clk 0:01:02.5]} 22. Bf1 {[%clk
0:01:28.4]} 22... Bf6 {[%clk 0:00:50.3]} 23. b4 {[%clk 0:01:20.9]} 23... Nc6
{[%clk 0:00:35]} 24. c3 {[%clk 0:01:18.9]} 24... Be5 {[%clk 0:00:33.4]} 25. Rg3
{[%clk 0:01:10.9]} 25... Ke7 {[%clk 0:00:19.2]} 26. b5 {[%clk 0:01:05.7]} 26...
Nd8 {[%clk 0:00:15.7]} 27. Nc4 {[%clk 0:01:01.1]} 27... f6 {[%clk 0:00:14.8]}
28. Nxe5 {[%clk 0:00:54.8]} 28... fxe5 {[%clk 0:00:14.1]} 29. b6 {[%clk
0:00:52.5]} 29... cxb6 {[%clk 0:00:12.8]} 30. Qxb6 {[%clk 0:00:46.9]} 30... Nde6
{[%clk 0:00:13.1]} 31. Ba3 {[%clk 0:00:46.5]} 31... Rd8 {[%clk 0:00:12.3]} 32.
c4 {[%clk 0:00:43.6]} 32... Nh5 {[%clk 0:00:08.1]} 33. c5 {[%clk 0:00:35.1]}
33... Nxg3+ {[%clk 0:00:07.8]} 34. fxg3 {[%clk 0:00:34.8]} 34... Qh5 {[%clk
0:00:08.3]} 35. cxd6+ {[%clk 0:00:33.5]} 35... Kf6 {[%clk 0:00:08.1]} 36. Kg2
{[%clk 0:00:17.7]} 36... g4 {[%clk 0:00:04.8]} 37. fxg4 {[%clk 0:00:11.5]} 37...
Qxg4 {[%clk 0:00:04.5]} 38. Qf2+ {[%clk 0:00:12.2]} 38... Kg7 {[%clk 0:00:03.2]}
39. Qf5 {[%clk 0:00:07.2]} 39... Qxf5 {[%clk 0:00:01.8]} 40. exf5 {[%clk
0:00:07.4]} 40... Nd4 {[%clk 0:00:01.7]} 41. g4 {[%clk 0:00:06.5]} 41... h5
{[%clk 0:00:01.3]} 42. h3 {[%clk 0:00:06.4]} 42... hxg4 {[%clk 0:00:01.6]} 43.
hxg4 {[%clk 0:00:07.3]} 1-0

[Event "Late-Titled-Tuesday-Blitz-September-12-2023"]
[Site "Chess.com"]
[Date "2023.09.12"]
[Round "5"]
[White "Alphafischer2019"]
[Black "bascheyaro"]
[Result "0-1"]
[WhiteElo "2567"]
[BlackElo "2824"]
[TimeControl "180+1"]
[EndTime "14:53:32 PDT"]
[Termination "bascheyaro won by checkmate"]

1. Nf3 {[%clk 0:03:00.9]} 1... d5 {[%clk 0:03:00.2]} 2. b3 {[%clk 0:03:00.4]}
2... Nf6 {[%clk 0:03:00.5]} 3. Bb2 {[%clk 0:02:57.8]} 3... Bf5 {[%clk
0:03:00.5]} 4. g3 {[%clk 0:02:55.8]} 4... c5 {[%clk 0:03:00.4]} 5. Bg2 {[%clk
0:02:55]} 5... Nc6 {[%clk 0:03:00.8]} 6. d3 {[%clk 0:02:50.2]} 6... e6 {[%clk
0:03:01]} 7. Nh4 {[%clk 0:02:48.5]} 7... Bg4 {[%clk 0:03:00.9]} 8. h3 {[%clk
0:02:48.4]} 8... Bh5 {[%clk 0:03:01.2]} 9. g4 {[%clk 0:02:49]} 9... Bg6 {[%clk
0:03:01.1]} 10. Nxg6 {[%clk 0:02:21.8]} 10... hxg6 {[%clk 0:03:02]} 11. e3
{[%clk 0:02:15.4]} 11... Bd6 {[%clk 0:02:58]} 12. Nd2 {[%clk 0:02:12.2]} 12...
d4 {[%clk 0:02:36.9]} 13. Nc4 {[%clk 0:02:03.3]} 13... dxe3 {[%clk 0:02:29.7]}
14. Nxe3 {[%clk 0:01:39.6]} 14... Qc7 {[%clk 0:02:23.6]} 15. Nc4 {[%clk
0:01:35.2]} 15... Bf4 {[%clk 0:02:20.7]} 16. a4 {[%clk 0:01:31.9]} 16... g5
{[%clk 0:02:19.3]} 17. Qf3 {[%clk 0:01:13.1]} 17... Rd8 {[%clk 0:02:02.8]} 18.
O-O {[%clk 0:01:04.5]} 18... Nd4 {[%clk 0:01:51.2]} 19. Bxd4 {[%clk 0:00:33.5]}
19... cxd4 {[%clk 0:01:52.1]} 20. Qxb7 {[%clk 0:00:31.9]} 20... Qxb7 {[%clk
0:01:51.9]} 21. Bxb7 {[%clk 0:00:31.8]} 21... Rxh3 {[%clk 0:01:52.5]} 22. Kg2
{[%clk 0:00:25.7]} 22... Rh4 {[%clk 0:01:51.9]} 23. Rh1 {[%clk 0:00:16.8]} 23...
Rxg4+ {[%clk 0:01:43.4]} 24. Kf3 {[%clk 0:00:17.1]} 24... Ke7 {[%clk 0:01:43.4]}
25. b4 {[%clk 0:00:16.4]} 25... Bc7 {[%clk 0:01:40.7]} 26. a5 {[%clk 0:00:16.1]}
26... Rf4+ {[%clk 0:01:40.2]} 27. Ke2 {[%clk 0:00:16.8]} 27... Rf5 {[%clk
0:01:37.5]} 28. Rab1 {[%clk 0:00:14.7]} 28... Rb8 {[%clk 0:01:33.6]} 29. Bg2
{[%clk 0:00:12.1]} 29... Ng4 {[%clk 0:01:32.5]} 30. Rhf1 {[%clk 0:00:10.6]}
30... Rfb5 {[%clk 0:01:28.3]} 31. Rh1 {[%clk 0:00:04.3]} 31... Ne5 {[%clk
0:01:11.7]} 32. Nxe5 {[%clk 0:00:02.9]} 32... Bxe5 {[%clk 0:01:12.6]} 33. Rb3
{[%clk 0:00:03.5]} 33... Rxb4 {[%clk 0:01:12.9]} 34. Rhb1 {[%clk 0:00:04.3]}
34... Rxb3 {[%clk 0:01:11]} 35. Rxb3 {[%clk 0:00:05.2]} 35... Rxb3 {[%clk
0:01:09.4]} 36. cxb3 {[%clk 0:00:06.1]} 36... Bd6 {[%clk 0:01:08.6]} 37. a6
{[%clk 0:00:06.4]} 37... g4 {[%clk 0:01:07.1]} 38. Bb7 {[%clk 0:00:07.2]} 38...
f5 {[%clk 0:01:06.9]} 39. Kf1 {[%clk 0:00:08]} 39... Kf6 {[%clk 0:01:05.9]} 40.
Kg2 {[%clk 0:00:08.4]} 40... e5 {[%clk 0:00:59.2]} 41. Bc6 {[%clk 0:00:08.2]}
41... Kg5 {[%clk 0:00:58.8]} 42. Bd5 {[%clk 0:00:08.2]} 42... Kf4 {[%clk
0:00:59.1]} 43. Kf1 {[%clk 0:00:07.7]} 43... e4 {[%clk 0:00:59.2]} 44. Ke2
{[%clk 0:00:08.5]} 44... e3 {[%clk 0:00:56.5]} 45. fxe3+ {[%clk 0:00:03.8]}
45... dxe3 {[%clk 0:00:57.4]} 46. Bc6 {[%clk 0:00:03.6]} 46... Bc5 {[%clk
0:00:57]} 47. d4 {[%clk 0:00:02.7]} 47... Bxd4 {[%clk 0:00:57.2]} 48. b4 {[%clk
0:00:03.6]} 48... Ke5 {[%clk 0:00:56.6]} 49. b5 {[%clk 0:00:03.4]} 49... Bb6
{[%clk 0:00:54.9]} 50. Bd7 {[%clk 0:00:04]} 50... g5 {[%clk 0:00:53.2]} 51. Bc8
{[%clk 0:00:03.7]} 51... g3 {[%clk 0:00:53]} 52. Kf3 {[%clk 0:00:03.2]} 52...
g4+ {[%clk 0:00:52.3]} 53. Ke2 {[%clk 0:00:02]} 53... g2 {[%clk 0:00:51.9]} 54.
Bxf5 {[%clk 0:00:02.3]} 54... g1=Q {[%clk 0:00:51.2]} 55. Kd3 {[%clk 0:00:03.2]}
55... Qd1+ {[%clk 0:00:50.8]} 56. Kc4 {[%clk 0:00:04.1]} 56... Qd4+ {[%clk
0:00:50.7]} 57. Kb3 {[%clk 0:00:05]} 57... Ba5 {[%clk 0:00:51.1]} 58. Be6 {[%clk
0:00:04.1]} 58... Qc3+ {[%clk 0:00:52]} 59. Ka2 {[%clk 0:00:04.4]} 59... Bb4
{[%clk 0:00:51.1]} 60. Bb3 {[%clk 0:00:04.2]} 60... Ba3 {[%clk 0:00:52]} 61.
Kxa3 {[%clk 0:00:04.3]} 61... e2 {[%clk 0:00:52.2]} 62. b6 {[%clk 0:00:05.2]}
62... e1=Q {[%clk 0:00:52.5]} 63. Ka4 {[%clk 0:00:05.5]} 63... Qea1+ {[%clk
0:00:53.4]} 64. Kb5 {[%clk 0:00:06.1]} 64... Qaa5# {[%clk 0:00:53.1]} 0-1

[Event "Late-Titled-Tuesday-Blitz-September-12-2023"]
[Site "Chess.com"]
[Date "2023.09.12"]
[Round "5"]
[White "jup1978"]
[Black "traack"]
[Result "0-1"]
[WhiteElo "2470"]
[BlackElo "2366"]
[TimeControl "180+1"]
[EndTime "14:53:32 PDT"]
[Termination "traack won on time"]

1. d4 {[%clk 0:02:45.9]} 1... Nf6 {[%clk 0:02:58.9]} 2. c4 {[%clk 0:02:43.7]}
2... e6 {[%clk 0:02:58.3]} 3. Nf3 {[%clk 0:02:44]} 3... d5 {[%clk 0:02:57.8]} 4.
g3 {[%clk 0:02:44.6]} 4... Bb4+ {[%clk 0:02:56.9]} 5. Bd2 {[%clk 0:02:41.2]}
5... Be7 {[%clk 0:02:57]} 6. Bg2 {[%clk 0:02:41]} 6... O-O {[%clk 0:02:57.2]} 7.
O-O {[%clk 0:02:41.4]} 7... c6 {[%clk 0:02:57.2]} 8. Bc3 {[%clk 0:02:38.6]} 8...
Ne4 {[%clk 0:02:57.3]} 9. Nbd2 {[%clk 0:02:36.7]} 9... f5 {[%clk 0:02:57]} 10.
Ne5 {[%clk 0:02:36]} 10... Nd7 {[%clk 0:02:49.5]} 11. Nxd7 {[%clk 0:02:28.4]}
11... Bxd7 {[%clk 0:02:49.2]} 12. f3 {[%clk 0:02:25.8]} 12... Nd6 {[%clk
0:02:42]} 13. b3 {[%clk 0:02:18.7]} 13... a5 {[%clk 0:02:37.9]} 14. e4 {[%clk
0:02:18.5]} 14... fxe4 {[%clk 0:02:36.7]} 15. fxe4 {[%clk 0:02:19.4]} 15...
Rxf1+ {[%clk 0:02:35.9]} 16. Qxf1 {[%clk 0:02:18.7]} 16... dxe4 {[%clk
0:02:14.6]} 17. Nxe4 {[%clk 0:02:16.2]} 17... Nxe4 {[%clk 0:02:15.5]} 18. Bxe4
{[%clk 0:02:16.1]} 18... Bf6 {[%clk 0:02:15.9]} 19. Qd3 {[%clk 0:02:12.2]} 19...
h6 {[%clk 0:02:08.5]} 20. Rf1 {[%clk 0:02:09.8]} 20... a4 {[%clk 0:01:50.1]} 21.
b4 {[%clk 0:01:31.7]} 21... a3 {[%clk 0:01:37.3]} 22. Kg2 {[%clk 0:01:26]} 22...
Rc8 {[%clk 0:01:30]} 23. Bd2 {[%clk 0:01:21.3]} 23... Qb6 {[%clk 0:01:25.3]} 24.
c5 {[%clk 0:01:13.8]} 24... Qd8 {[%clk 0:01:12.4]} 25. Bf4 {[%clk 0:01:03.1]}
25... Be8 {[%clk 0:01:09.4]} 26. Rd1 {[%clk 0:01:02.6]} 26... Bh5 {[%clk
0:01:04]} 27. Rd2 {[%clk 0:01:00]} 27... Qd7 {[%clk 0:01:04.2]} 28. Bd6 {[%clk
0:00:58]} 28... Re8 {[%clk 0:00:51.3]} 29. Rf2 {[%clk 0:00:52.3]} 29... e5
{[%clk 0:00:50.1]} 30. d5 {[%clk 0:00:45.6]} 30... Bf7 {[%clk 0:00:44.3]} 31.
dxc6 {[%clk 0:00:43.4]} 31... bxc6 {[%clk 0:00:45.2]} 32. Qxa3 {[%clk
0:00:41.2]} 32... Bd5 {[%clk 0:00:45]} 33. Qf3 {[%clk 0:00:40.9]} 33... Qe6
{[%clk 0:00:43.6]} 34. Rd2 {[%clk 0:00:37.2]} 34... Ra8 {[%clk 0:00:38.7]} 35.
a4 {[%clk 0:00:23.3]} 35... Bxe4 {[%clk 0:00:33.6]} 36. Qxe4 {[%clk 0:00:22.3]}
36... Rxa4 {[%clk 0:00:34.5]} 37. Qxc6 {[%clk 0:00:19.5]} 37... Rxb4 {[%clk
0:00:34.9]} 38. Qa8+ {[%clk 0:00:17.7]} 38... Kh7 {[%clk 0:00:33.7]} 39. Qa1
{[%clk 0:00:16.2]} 39... e4 {[%clk 0:00:31.5]} 40. Qe1 {[%clk 0:00:15.8]} 40...
Bc3 {[%clk 0:00:30.6]} 41. Qe2 {[%clk 0:00:12.3]} 41... Bxd2 {[%clk 0:00:30.2]}
42. Qxd2 {[%clk 0:00:13.2]} 42... e3 {[%clk 0:00:28]} 43. Qe2 {[%clk 0:00:13.4]}
43... Qe4+ {[%clk 0:00:28.1]} 44. Kh3 {[%clk 0:00:13]} 44... Qf5+ {[%clk
0:00:25.4]} 45. Kg2 {[%clk 0:00:11.3]} 45... Qe4+ {[%clk 0:00:22.5]} 46. Kh3
{[%clk 0:00:11.3]} 46... Rc4 {[%clk 0:00:22.9]} 47. Qh5 {[%clk 0:00:06.2]} 47...
Rc2 {[%clk 0:00:21.3]} 48. c6 {[%clk 0:00:01.8]} 48... Rxc6 {[%clk 0:00:20.1]}
49. Bf4 {[%clk 0:00:02.3]} 49... Rc2 {[%clk 0:00:18.9]} 0-1

[Event "Late-Titled-Tuesday-Blitz-September-12-2023"]
[Site "Chess.com"]
[Date "2023.09.12"]
[Round "5"]
[White "kaponerde"]
[Black "HajiyevKanan"]
[Result "0-1"]
[WhiteElo "2261"]
[BlackElo "2512"]
[TimeControl "180+1"]
[EndTime "14:53:34 PDT"]
[Termination "HajiyevKanan won on time"]

1. e4 {[%clk 0:02:58.5]} 1... c6 {[%clk 0:02:59.9]} 2. c4 {[%clk 0:02:56.9]}
2... d5 {[%clk 0:03:00.8]} 3. cxd5 {[%clk 0:02:57.8]} 3... cxd5 {[%clk
0:03:01.7]} 4. exd5 {[%clk 0:02:58.3]} 4... Nf6 {[%clk 0:03:02.3]} 5. Qa4+
{[%clk 0:02:58.3]} 5... Nbd7 {[%clk 0:03:00.4]} 6. Nc3 {[%clk 0:02:58.2]} 6...
g6 {[%clk 0:02:59.1]} 7. Bc4 {[%clk 0:02:58.5]} 7... Bg7 {[%clk 0:02:59.8]} 8.
Nf3 {[%clk 0:02:58.4]} 8... O-O {[%clk 0:03:00.5]} 9. d3 {[%clk 0:02:58.7]} 9...
Nb6 {[%clk 0:02:52.8]} 10. Qb3 {[%clk 0:02:58.4]} 10... Bg4 {[%clk 0:02:48]} 11.
Ne5 {[%clk 0:02:53.5]} 11... Rc8 {[%clk 0:02:44.7]} 12. O-O {[%clk 0:02:45]}
12... Bf5 {[%clk 0:02:39.7]} 13. Re1 {[%clk 0:02:30.3]} 13... Ne8 {[%clk
0:02:23.1]} 14. Bf4 {[%clk 0:01:28.4]} 14... Nd6 {[%clk 0:02:23]} 15. Rad1
{[%clk 0:01:21.4]} 15... Qc7 {[%clk 0:02:13.9]} 16. Nb5 {[%clk 0:01:19]} 16...
Nxb5 {[%clk 0:02:09.2]} 17. Qxb5 {[%clk 0:01:19.9]} 17... Qc5 {[%clk 0:01:35.4]}
18. Qb3 {[%clk 0:01:10.1]} 18... Qa5 {[%clk 0:01:03.8]} 19. Bd2 {[%clk 0:00:44]}
19... Qa4 {[%clk 0:00:59.5]} 20. Qxa4 {[%clk 0:00:44]} 20... Nxa4 {[%clk
0:01:00.2]} 21. b3 {[%clk 0:00:43.1]} 21... Nb2 {[%clk 0:00:54.7]} 22. Rb1
{[%clk 0:00:37.7]} 22... Bxe5 {[%clk 0:00:54.8]} 23. Rxe5 {[%clk 0:00:37.9]}
23... Nxd3 {[%clk 0:00:54.3]} 24. Rxe7 {[%clk 0:00:35.6]} 24... Nxf2 {[%clk
0:00:33.1]} 25. Rf1 {[%clk 0:00:26.1]} 25... Ne4 {[%clk 0:00:33]} 26. Bh6 {[%clk
0:00:22.2]} 26... Rfe8 {[%clk 0:00:33.2]} 27. Rxe8+ {[%clk 0:00:18.6]} 27...
Rxe8 {[%clk 0:00:34.1]} 28. Bf4 {[%clk 0:00:14.5]} 28... a6 {[%clk 0:00:32]} 29.
d6 {[%clk 0:00:14]} 29... Rd8 {[%clk 0:00:29.2]} 30. Rd1 {[%clk 0:00:12.7]}
30... g5 {[%clk 0:00:24.1]} 31. Be5 {[%clk 0:00:10.4]} 31... Be6 {[%clk
0:00:12.8]} 32. Bd3 {[%clk 0:00:05.8]} 32... Nc5 {[%clk 0:00:08]} 33. Be2 {[%clk
0:00:06]} 33... h6 {[%clk 0:00:06]} 34. Bf6 {[%clk 0:00:04.8]} 34... Rd7 {[%clk
0:00:06.2]} 35. Be7 {[%clk 0:00:05]} 35... Kg7 {[%clk 0:00:06.1]} 36. Bf3 {[%clk
0:00:05.2]} 36... a5 {[%clk 0:00:04.4]} 37. Rc1 {[%clk 0:00:05.7]} 37... Na6
{[%clk 0:00:04.7]} 38. Rc8 {[%clk 0:00:04.8]} 38... Kg6 {[%clk 0:00:04]} 39.
Rg8+ {[%clk 0:00:04.1]} 39... Kf5 {[%clk 0:00:04.4]} 40. Rh8 {[%clk 0:00:03.8]}
40... Kg6 {[%clk 0:00:03.9]} 41. Be4+ {[%clk 0:00:02.8]} 41... f5 {[%clk
0:00:03.5]} 42. Bd3 {[%clk 0:00:02.8]} 42... Nc5 {[%clk 0:00:03.2]} 43. Bc2
{[%clk 0:00:02.2]} 43... Ne4 {[%clk 0:00:03.8]} 44. Bxe4 {[%clk 0:00:01.3]}
44... fxe4 {[%clk 0:00:04.7]} 0-1

[Event "Late-Titled-Tuesday-Blitz-September-12-2023"]
[Site "Chess.com"]
[Date "2023.09.12"]
[Round "5"]
[White "Piotrek1979"]
[Black "m_ezat"]
[Result "0-1"]
[WhiteElo "2461"]
[BlackElo "2658"]
[TimeControl "180+1"]
[EndTime "14:53:43 PDT"]
[Termination "m_ezat won by resignation"]

1. Nf3 {[%clk 0:03:00.9]} 1... b5 {[%clk 0:02:56.7]} 2. g3 {[%clk 0:03:01.8]}
2... Bb7 {[%clk 0:02:53]} 3. Bg2 {[%clk 0:03:02]} 3... Nf6 {[%clk 0:02:51.3]} 4.
O-O {[%clk 0:03:01.1]} 4... e6 {[%clk 0:02:51.3]} 5. a4 {[%clk 0:03:00.1]} 5...
b4 {[%clk 0:02:50.7]} 6. d3 {[%clk 0:03:00.1]} 6... c5 {[%clk 0:02:49.9]} 7. e4
{[%clk 0:02:57.9]} 7... d6 {[%clk 0:02:49.5]} 8. Nbd2 {[%clk 0:02:56.3]} 8...
Nbd7 {[%clk 0:02:48.6]} 9. b3 {[%clk 0:02:55.8]} 9... Be7 {[%clk 0:02:48]} 10.
Bb2 {[%clk 0:02:55.5]} 10... O-O {[%clk 0:02:47.9]} 11. Re1 {[%clk 0:02:55]}
11... Ng4 {[%clk 0:02:43]} 12. h3 {[%clk 0:02:50.6]} 12... Nge5 {[%clk
0:02:41.9]} 13. a5 {[%clk 0:02:48.6]} 13... a6 {[%clk 0:02:40.9]} 14. Nh2 {[%clk
0:02:32.3]} 14... Nc6 {[%clk 0:02:37.9]} 15. Nc4 {[%clk 0:02:28.7]} 15... Nde5
{[%clk 0:02:33.4]} 16. Nxe5 {[%clk 0:02:13.9]} 16... dxe5 {[%clk 0:02:30.1]} 17.
Nf3 {[%clk 0:02:11.6]} 17... f6 {[%clk 0:02:27.8]} 18. h4 {[%clk 0:02:09.2]}
18... Nxa5 {[%clk 0:02:25.2]} 19. Bh3 {[%clk 0:02:08.4]} 19... Bc8 {[%clk
0:02:20.7]} 20. Nd2 {[%clk 0:02:06.2]} 20... Nc6 {[%clk 0:02:19.7]} 21. Nc4
{[%clk 0:02:04.8]} 21... Nd4 {[%clk 0:02:19.1]} 22. Bxd4 {[%clk 0:02:00.9]}
22... exd4 {[%clk 0:02:18.3]} 23. e5 {[%clk 0:02:00.6]} 23... f5 {[%clk
0:02:17.9]} 24. f4 {[%clk 0:01:59]} 24... Bb7 {[%clk 0:02:16.2]} 25. Bg2 {[%clk
0:01:58.7]} 25... Bd5 {[%clk 0:02:05.8]} 26. Na5 {[%clk 0:01:55.4]} 26... Qd7
{[%clk 0:02:02.7]} 27. Bxd5 {[%clk 0:01:54]} 27... Qxd5 {[%clk 0:02:01.1]} 28.
Qe2 {[%clk 0:01:54.9]} 28... Bd8 {[%clk 0:01:59.2]} 29. Qg2 {[%clk 0:01:54]}
29... Qxg2+ {[%clk 0:01:53.4]} 30. Kxg2 {[%clk 0:01:54.9]} 30... Bc7 {[%clk
0:01:51.9]} 31. Kf3 {[%clk 0:01:53.4]} 31... Kf7 {[%clk 0:01:46.3]} 32. h5
{[%clk 0:01:52.8]} 32... Ke7 {[%clk 0:01:43.5]} 33. Nb7 {[%clk 0:01:45.5]} 33...
Kd7 {[%clk 0:01:42.7]} 34. Nxc5+ {[%clk 0:01:44.5]} 34... Ke7 {[%clk 0:01:42.8]}
35. Nxa6 {[%clk 0:01:27.5]} 35... Rfc8 {[%clk 0:01:37.8]} 36. Nxc7 {[%clk
0:01:25.1]} 36... Rxa1 {[%clk 0:01:36]} 37. Rxa1 {[%clk 0:01:22.9]} 37... Rxc7
{[%clk 0:01:36.1]} 38. Ra2 {[%clk 0:01:23.3]} 38... Kf7 {[%clk 0:01:22.7]} 39.
Ke2 {[%clk 0:01:22.6]} 39... g6 {[%clk 0:01:18.3]} 40. hxg6+ {[%clk 0:01:23.5]}
40... Kxg6 {[%clk 0:01:17.8]} 41. Kd2 {[%clk 0:01:24.4]} 41... Kh5 {[%clk
0:01:17.7]} 42. Ra6 {[%clk 0:01:23.9]} 42... Re7 {[%clk 0:01:17.1]} 43. Rb6
{[%clk 0:00:25.4]} 43... Kg4 {[%clk 0:01:15.6]} 44. Rxb4 {[%clk 0:00:26.3]}
44... Kxg3 {[%clk 0:01:15.7]} 45. Rxd4 {[%clk 0:00:27.2]} 45... h5 {[%clk
0:01:15.9]} 46. Ke3 {[%clk 0:00:25.4]} 46... h4 {[%clk 0:01:15.3]} 47. Rd8
{[%clk 0:00:25.3]} 47... Rg7 {[%clk 0:01:13.2]} 48. Rh8 {[%clk 0:00:24.6]} 48...
h3 {[%clk 0:01:13.2]} 49. b4 {[%clk 0:00:24.1]} 49... h2 {[%clk 0:01:11.2]} 50.
b5 {[%clk 0:00:23.8]} 50... Kg2 {[%clk 0:01:11.4]} 51. Rxh2+ {[%clk 0:00:17.2]}
51... Kxh2 {[%clk 0:01:10.6]} 52. c4 {[%clk 0:00:18.1]} 52... Rc7 {[%clk
0:01:02.6]} 53. Kd4 {[%clk 0:00:15.2]} 53... Kg3 {[%clk 0:00:59.2]} 54. b6
{[%clk 0:00:14.7]} 54... Rd7+ {[%clk 0:00:55]} 55. Kc3 {[%clk 0:00:11.2]} 55...
Kxf4 {[%clk 0:00:54.8]} 56. c5 {[%clk 0:00:11.4]} 56... Kxe5 {[%clk 0:00:54.8]}
57. c6 {[%clk 0:00:11.7]} 57... Kd6 {[%clk 0:00:43.8]} 58. cxd7 {[%clk
0:00:10.8]} 58... Kxd7 {[%clk 0:00:43.9]} 59. Kd4 {[%clk 0:00:10.9]} 59... Kc6
{[%clk 0:00:42.4]} 60. Ke5 {[%clk 0:00:10.6]} 60... Kxb6 {[%clk 0:00:42.3]} 61.
d4 {[%clk 0:00:11.5]} 61... Kc6 {[%clk 0:00:41.5]} 62. d5+ {[%clk 0:00:11.5]}
62... exd5 {[%clk 0:00:41.2]} 63. Kxf5 {[%clk 0:00:11.4]} 63... Kc5 {[%clk
0:00:41.4]} 64. Kf4 {[%clk 0:00:11.9]} 64... Kd4 {[%clk 0:00:40.5]} 65. Kf3
{[%clk 0:00:11.8]} 65... Kd3 {[%clk 0:00:40.8]} 0-1

[Event "Late-Titled-Tuesday-Blitz-September-12-2023"]
[Site "Chess.com"]
[Date "2023.09.12"]
[Round "5"]
[White "Cirky"]
[Black "Mops_2004"]
[Result "0-1"]
[WhiteElo "2473"]
[BlackElo "2711"]
[TimeControl "180+1"]
[EndTime "14:53:53 PDT"]
[Termination "Mops_2004 won on time"]

1. d4 {[%clk 0:02:56.2]} 1... g6 {[%clk 0:03:00.5]} 2. c4 {[%clk 0:02:54.8]}
2... Bg7 {[%clk 0:03:01]} 3. h4 {[%clk 0:02:55.5]} 3... Nf6 {[%clk 0:02:58.8]}
4. Nc3 {[%clk 0:02:54.4]} 4... d6 {[%clk 0:02:58.2]} 5. e4 {[%clk 0:02:52]} 5...
O-O {[%clk 0:02:55.3]} 6. Be2 {[%clk 0:02:51.5]} 6... h5 {[%clk 0:02:55.3]} 7.
Bg5 {[%clk 0:02:50.4]} 7... a6 {[%clk 0:02:53.8]} 8. Nf3 {[%clk 0:02:48.7]} 8...
Bg4 {[%clk 0:02:53.1]} 9. O-O {[%clk 0:02:48.2]} 9... Nfd7 {[%clk 0:02:51.6]}
10. e5 {[%clk 0:02:19.4]} 10... dxe5 {[%clk 0:02:27.5]} 11. dxe5 {[%clk
0:02:18.8]} 11... Nxe5 {[%clk 0:02:26.8]} 12. Nxe5 {[%clk 0:02:17.5]} 12... Qxd1
{[%clk 0:02:22.8]} 13. Bxd1 {[%clk 0:02:14.6]} 13... Bxe5 {[%clk 0:02:20.8]} 14.
Bxg4 {[%clk 0:02:14.1]} 14... Bxc3 {[%clk 0:02:13.4]} 15. Bxe7 {[%clk 0:02:03]}
15... Re8 {[%clk 0:01:53.1]} 16. Bf3 {[%clk 0:01:57.4]} 16... Rxe7 {[%clk
0:01:37]} 17. bxc3 {[%clk 0:01:56.6]} 17... c6 {[%clk 0:01:28.1]} 18. Rab1
{[%clk 0:01:54.6]} 18... Ra7 {[%clk 0:01:20.9]} 19. Rfe1 {[%clk 0:01:38.9]}
19... Rxe1+ {[%clk 0:01:15.2]} 20. Rxe1 {[%clk 0:01:38.7]} 20... Kf8 {[%clk
0:01:15.9]} 21. Rd1 {[%clk 0:01:18.2]} 21... Ke7 {[%clk 0:01:14.7]} 22. Re1+
{[%clk 0:01:12.2]} 22... Kd8 {[%clk 0:01:06.7]} 23. g4 {[%clk 0:01:08.2]} 23...
hxg4 {[%clk 0:01:05.1]} 24. Bxg4 {[%clk 0:01:09.1]} 24... f5 {[%clk 0:01:04.6]}
25. Bf3 {[%clk 0:01:05.2]} 25... Nd7 {[%clk 0:00:50]} 26. Re6 {[%clk 0:01:04.4]}
26... Nf8 {[%clk 0:00:49.8]} 27. Rd6+ {[%clk 0:01:03.1]} 27... Ke7 {[%clk
0:00:46.6]} 28. c5 {[%clk 0:01:03.5]} 28... Ra8 {[%clk 0:00:42.5]} 29. h5 {[%clk
0:00:55.1]} 29... Rd8 {[%clk 0:00:29.5]} 30. hxg6 {[%clk 0:00:50.7]} 30... Rxd6
{[%clk 0:00:29.7]} 31. cxd6+ {[%clk 0:00:50.4]} 31... Kf6 {[%clk 0:00:30.3]} 32.
Bh5 {[%clk 0:00:43]} 32... Ne6 {[%clk 0:00:19.7]} 33. Kf1 {[%clk 0:00:27.4]}
33... Ng7 {[%clk 0:00:19.4]} 34. Be2 {[%clk 0:00:16.6]} 34... Kxg6 {[%clk
0:00:20.1]} 35. Bc4 {[%clk 0:00:15.8]} 35... Kf6 {[%clk 0:00:20.1]} 36. f4
{[%clk 0:00:15.3]} 36... Nh5 {[%clk 0:00:17.7]} 37. Kf2 {[%clk 0:00:15.5]} 37...
Nxf4 {[%clk 0:00:17.9]} 38. Ke3 {[%clk 0:00:16.3]} 38... Ne6 {[%clk 0:00:12.4]}
39. d7 {[%clk 0:00:15.2]} 39... Nd8 {[%clk 0:00:11.5]} 40. Kf4 {[%clk
0:00:15.9]} 40... Ke7 {[%clk 0:00:09.7]} 41. Kxf5 {[%clk 0:00:15.6]} 41... Kxd7
{[%clk 0:00:10.5]} 42. Ke5 {[%clk 0:00:15.5]} 42... Kc7 {[%clk 0:00:09.9]} 43.
a4 {[%clk 0:00:14.8]} 43... a5 {[%clk 0:00:08.8]} 44. Kf6 {[%clk 0:00:13.8]}
44... b6 {[%clk 0:00:09.1]} 45. Ke7 {[%clk 0:00:14.1]} 45... Nb7 {[%clk
0:00:10]} 46. Bb3 {[%clk 0:00:10.9]} 46... Nc5 {[%clk 0:00:10.4]} 47. Bc2 {[%clk
0:00:11.6]} 47... b5 {[%clk 0:00:10.2]} 48. axb5 {[%clk 0:00:11.5]} 48... cxb5
{[%clk 0:00:11.1]} 49. Kf6 {[%clk 0:00:11.6]} 49... Kd6 {[%clk 0:00:11.4]} 50.
Kf5 {[%clk 0:00:11.3]} 50... Kd5 {[%clk 0:00:11.9]} 51. Kf4 {[%clk 0:00:09.1]}
51... Kc4 {[%clk 0:00:12]} 52. Ke3 {[%clk 0:00:09.8]} 52... Kxc3 {[%clk
0:00:12.4]} 53. Bg6 {[%clk 0:00:09.2]} 53... b4 {[%clk 0:00:12.6]} 54. Ke2
{[%clk 0:00:09.7]} 54... b3 {[%clk 0:00:12.8]} 55. Ke1 {[%clk 0:00:10.4]} 55...
a4 {[%clk 0:00:12.2]} 56. Kd1 {[%clk 0:00:11]} 56... a3 {[%clk 0:00:13.1]} 57.
Kc1 {[%clk 0:00:11.5]} 57... a2 {[%clk 0:00:13.7]} 58. Bb1 {[%clk 0:00:11.1]}
58... a1=Q {[%clk 0:00:14.6]} 0-1